Cogmind - Beta 14 @@@ ROGUE MODE // 2025.03.26 @ 22:31:16 Player: JoshKwa Result: Destroyed by Y-45 Defender with Heavy Assault Rifle Performance ------------- Evolutions (2) 1000 Regions Visited (4) 800 Robots Destroyed (1) 5 Value Destroyed (34) 34 Prototype IDs (0) 0 Alien Tech Used (0) 0 Bonus (0) 0 TOTAL SCORE: 1839 Bonus ------- None Cogmind --------- Core Integrity 0/550 Matter 300/300 Energy 98/100 System Corruption 1% Temperature Cool (9) Movement Core (50) Location -8/Materials Parts ------- > --- POWER (2) -------- (None) > --- PROPULSION (4) --- (None) > --- UTILITY (2) ------ (None) > --- WEAPON (3) ------- (None) > --- INVENTORY (5) ---- (None) Peak State ------------ > --- POWER ------------ (None) > --- PROPULSION ------- Advanced Treads Aluminum Leg > --- UTILITY ---------- Improved Sensor Array Hardened Light Armor Plating > --- WEAPON ----------- Shock Rifle > --- INVENTORY -------- (None) [Rating: 12] Favorites ----------- Power Light Ion Engine Engine Light Ion Engine Propulsion Wheel Treads Advanced Treads Leg Aluminum Leg Wheel Wheel Utility Seismic Detector Device Seismic Detector Processor Visual Processing Unit Protection Hardened Light Armor Plating Weapon Small Laser Energy Gun Small Laser Energy Cannon EM Pulse Cannon Ballistic Gun Light Assault Rifle Build | -11 -10 -9 -9 -8 ------- Run | Yrd Mat Mat Min Mat Slots Evolved 4 | . . 2 . 2 Power 1 | . . 1 . . Propulsion 2 | . . . . 2 Utility . | . . . . . Weapon 1 | . . 1 . . Parts Attached 22 | 5 1 4 4 8 Power 3 | 1 . 1 1 . Engine 3 | 1 . 1 1 . Core . | . . . . . Reactor . | . . . . . Propulsion 8 | 2 . . 2 4 Treads 1 | . . . . 1 Leg 4 | . . . 2 2 Wheel 3 | 2 . . . 1 Hover . | . . . . . Flight . | . . . . . Utility 6 | . 1 2 1 2 Device 4 | . 1 1 1 1 Storage . | . . . . . Processor 1 | . . 1 . . Hackware . | . . . . . Protection 1 | . . . . 1 Artifact . | . . . . . Weapon 5 | 2 . 1 . 2 Energy Gun 3 | 2 . . . 1 Energy Cannon 1 | . . . . 1 Ballistic Gun 1 | . . 1 . . Ballistic Cannon . | . . . . . Launcher . | . . . . . Special Weapon . | . . . . . Impact Weapon . | . . . . . Slashing Weapon . | . . . . . Piercing Weapon . | . . . . . Special Melee Weapon . | . . . . . Unidentified Prototypes . | . . . . . Parts Lost 21 | . . . 9 12 Power 3 | . . . 2 1 Propulsion 8 | . . . 2 6 Utility 5 | . . . 2 3 Weapon 5 | . . . 3 2 Highest Loss Streak 9 | . . . 9 6 To Critical Strikes 1 | . . . . 1 Average Slot Usage (%) 66 | . 82 95 65 24 Engine 11 | . 14 22 11 1 Leg 5 | . . . 7 12 Wheel 15 | . 28 22 12 . Device 8 | . 11 7 8 4 Processor 3 | . . 10 4 . Energy Gun 16 | . 28 22 13 . Ballistic Gun 4 | . . 11 7 . Peak Build Rating 12 | 5 6 10 10 12 Average Rating 6 | 3 5 9 6 4 On Entrance 5 | . 5 6 10 5 Naked Turns 49 | . . . . 49 Heaviest Build 12 | 6 7 11 11 12 Greatest Support 40 | 26 26 26 26 40 Greatest Overweight (x) 1 | . . . . 1 Average Overweight (x) . | . . . . . Largest Inventory Capacity 5 | 5 5 5 5 5 Average Capacity 5 | 5 5 5 5 5 Most Carried 5 | 4 5 4 4 2 Average Carried 2 | 2 4 3 3 . Final Capacity 5 | 5 5 5 5 5 Final Carried 5 | 4 5 3 2 . Class Distribution -------------------- 66% | Mutant 31% | Skirmisher Dominant Class ---------------- Mutant | -10/Materials Skirmisher | -9/Materials Mutant | -9/Mines Mutant | -8/Materials Resources | -11 -10 -9 -9 -8 ----------- Run | Yrd Mat Mat Min Mat Matter Collected 332 | 216 37 . 79 . Remotely . | . . . . . Salvage Created 115 | . 37 . 78 . Parts 2 | . 2 . . . Haulers Intercepted . | . . . . . Recyclers Shooed . | . . . . . Parts Field Recycled . | . . . . . Retrieved Matter . | . . . . . Parts Self-Destructed . | . . . . . Prevented . | . . . . . Kills | -11 -10 -9 -9 -8 ------- Run | Yrd Mat Mat Min Mat Combat Hostiles Destroyed 6 | . 1 . 5 . Guns 6 | . 1 . 5 . Classes Destroyed 2 | . 1 . 1 . Grunt 1 | . 1 . . . Assembled 5 | . . . 5 . Best Kill Streak 4 | . 1 . 4 . Combat Bots Only 4 | . 1 . 4 . Max Kills in Single Turn 1 | . 1 . 1 . Gunslinging . | . . . . . Exploded . | . . . . . Melee . | . . . . . Uniques/NPCs Destroyed . | . . . . . Combat | -11 -10 -9 -9 -8 -------- Run | Yrd Mat Mat Min Mat Hostile Shots Fired 207 | . 2 6 65 134 Missed 67 | . 2 4 17 44 Damage Taken 2198 | . 6 21 866 1305 Core 805 | . . 10 243 552 Absorbed by Shields . | . . . . . Regen/Repaired (Parts) 15 | . . 15 . . Core Remaining (%) 78 | 100 100 . 36 . Volleys Fired 28 | . 4 . 22 2 Largest 3 | . 2 . 3 1 Hottest 110 | . 90 . 110 63 Shots Fired 61 | . 8 . 51 2 Gun 59 | . 8 . 51 . Cannon 2 | . . . . 2 Launcher . | . . . . . Special . | . . . . . Kinetic 22 | . . . 22 . Thermal 37 | . 8 . 29 . Explosive . | . . . . . Electromagnetic 2 | . . . . 2 Robot Hit Streak 8 | . 3 . 8 3 Robot Miss Streak 4 | . 2 . 4 . Penetration Max . | . . . . . Secondary Targets 1 | . . . 1 . Max Gunslinging Chain 1 | . . . 1 . Shots Hit Robots 33 | . 4 . 27 2 Core Hits 17 | . 3 . 13 1 Critical Kills . | . . . . . Critical Parts Destroyed . | . . . . . Critical Strikes . | . . . . . Melee Attacks . | . . . . . Impact . | . . . . . Slashing . | . . . . . Piercing . | . . . . . Sneak Attacks . | . . . . . Combat Hostiles . | . . . . . Follow-up Attacks . | . . . . . Damage Inflicted 422 | . 67 . 278 77 Guns 331 | . 55 . 276 . Cannons 42 | . . . . 42 Explosions . | . . . . . Melee . | . . . . . Ramming 49 | . 12 . 2 35 Kinetic 93 | . . . 93 . Thermal 238 | . 55 . 183 . Explosive . | . . . . . Electromagnetic 42 | . . . . 42 Impact . | . . . . . Slashing . | . . . . . Piercing . | . . . . . Highest Corruption 3 | . . . 3 1 Average Corruption 2 | . . . 3 1 Corruption Purged . | . . . . . Corruption Blocked . | . . . . . Effects 4 | . . . 4 . Message Errors 2 | . . . 2 . Data Loss (minor) 1 | . . . 1 . Misfires 1 | . . . 1 . Overload Shots . | . . . . . Overflow Damage . | . . . . . Projectiles . | . . . . . Explosions . | . . . . . Melee . | . . . . . Knockbacks 1 | . . . . 1 Impact 1 | . . . . 1 Kinetic . | . . . . . Secondary . | . . . . . Self-Inflicted Damage 15 | . 6 . . 9 Shots . | . . . . . Rammed 9 | . 2 . . 7 Targets Rammed 17 | . 2 . 2 13 Kicked 8 | . . . 2 6 Crushed . | . . . . . Highest Temperature 348 | . 70 . 348 46 Average Temperature 151 | . 29 . 197 16 Received Heat Transfer 519 | . . 12 21 486 Effects 1 | . . . 1 . Shutdowns 1 | . . . 1 . Siege Activations . | . . . . . Robots Corrupted . | . . . . . Combat Hostiles . | . . . . . Parts Fried . | . . . . . Impact Corruptions . | . . . . . Robots Melted . | . . . . . Combat Hostiles . | . . . . . Parts Melted . | . . . . . Heat Transferred 597 | . 149 . 448 . Parts Sabotaged . | . . . . . Parts Stolen . | . . . . . Parts Stripped . | . . . . . Power Chain Reactions . | . . . . . Alert | -11 -10 -9 -9 -8 ------- Run | Yrd Mat Mat Min Mat Peak Influence 170 | . 40 46 17 170 Initial 17 | . . 16 17 . Average 15 | . 10 21 7 32 Maximum Alert Level . | . . . . . Low Security (%) 100 | 100 100 100 100 100 Level 1 . | . . . . . Level 2 . | . . . . . Level 3 . | . . . . . Level 4 . | . . . . . Level 5 . | . . . . . High Security . | . . . . . Max Security . | . . . . . Squads Dispatched 5 | . . 1 . 4 Investigation 2 | . . . . 2 Extermination . | . . . . . Reinforcement 3 | . . 1 . 2 Assault . | . . . . . Garrison . | . . . . . Intercept . | . . . . . Searches Triggered . | . . . . . Construction Impeded 1 | . . . . 1 Haulers Reinforced . | . . . . . Active Scanning Responses . | . . . . . Cargo Convoy Interrupts . | . . . . . Stealth | -11 -10 -9 -9 -8 --------- Run | Yrd Mat Mat Min Mat Distress Signals 1 | . 1 . . . Communications Jammed . | . . . . . Distress Signals . | . . . . . Times Spotted 34 | . 2 4 10 18 Peak Tracking Total 14 | . 2 3 5 14 Tactical Retreats 3 | . . . . 3 Traps | -11 -10 -9 -9 -8 ------- Run | Yrd Mat Mat Min Mat Traps Triggered 2 | . . . . 2 Indirectly . | . . . . . Trap Hack Attempts . | . . . . . Triggered . | . . . . . Disarmed . | . . . . . Reprogrammed . | . . . . . Reused . | . . . . . Traps Extracted . | . . . . . Installed . | . . . . . Triggered . | . . . . . Machines | -11 -10 -9 -9 -8 ---------- Run | Yrd Mat Mat Min Mat Machines Disabled . | . . . . . Max in Single Turn . | . . . . . Machines Repaired . | . . . . . Machines Dismantled . | . . . . . Machines Sabotaged . | . . . . . Overloaded Fab Kills . | . . . . . Hacking | -11 -10 -9 -9 -8 --------- Run | Yrd Mat Mat Min Mat Machines Accessed 5 | . 2 3 . . Terminals 3 | . 1 2 . . Fabricators . | . . . . . Repair Stations 1 | . . 1 . . Recycling Units 1 | . 1 . . . Scanalyzers . | . . . . . Garrison Access . | . . . . . Total Hacks 10 | . 4 6 . . Successful 8 | . 4 4 . . Failed 2 | . . 2 . . Catastrophic . | . . . . . Database Lockouts . | . . . . . Manual . | . . . . . Terminals 6 | . 2 4 . . Fabricators . | . . . . . Repair Stations 2 | . . 2 . . Recycling Units 2 | . 2 . . . Scanalyzers . | . . . . . Garrison Access . | . . . . . Terminal Hacks 4 | . 2 2 . . Record 1 | . . 1 . . Emergency Access Points 1 | . 1 . . . Hauler Manifests 1 | . 1 . . . Zone Layout 1 | . . 1 . . Fabricator Hacks . | . . . . . Repair Station Hacks 2 | . . 2 . . Scan Component 1 | . . 1 . . Repair 1 | . . 1 . . Recycling Unit Hacks 2 | . 2 . . . Report Inventory 1 | . 1 . . . Retrieve Components 1 | . 1 . . . Scanalyzer . | . . . . . Garrison Access Hacks . | . . . . . Unauthorized Hacks . | . . . . . Terminals . | . . . . . Fabricators . | . . . . . Repair Stations . | . . . . . Recycling Units . | . . . . . Scanalyzers . | . . . . . Garrison Access . | . . . . . Data Cores Recovered . | . . . . . Used . | . . . . . Hacking Detections 4 | . 2 2 . . Full Trace Events . | . . . . . Feedback Events . | . . . . . Feedback Blocked . | . . . . . Robot Schematics Acquired . | . . . . . Robots Built . | . . . . . Authchips . | . . . . . Time . | . . . . . Total Robot Build Rating . | . . . . . Part Schematics Acquired . | . . . . . Parts Built . | . . . . . Authchips . | . . . . . Time . | . . . . . Total Part Build Rating . | . . . . . Parts Repaired 1 | . . 1 . . Time 26 | . . 26 . . Parts Recycled . | . . . . . Recycled Matter . | . . . . . Retrieved Matter . | . . . . . Retrieved Components 2 | . 2 . . . Parts Scanalyzed . | . . . . . Part Schematics Acquired . | . . . . . Parts Damaged . | . . . . . Bothacking | -11 -10 -9 -9 -8 ------------ Run | Yrd Mat Mat Min Mat Used RIF Installer . | . . . . . Robots Hacked . | . . . . . Non-combat . | . . . . . Combat . | . . . . . Robot Hacks Applied . | . . . . . Relay Couplers Released . | . . . . . Fabnet Peak Effective % . | . . . . . Robots Rewired . | . . . . . Allies Hacked . | . . . . . Hacks Repelled . | . . . . . Allies | -11 -10 -9 -9 -8 -------- Run | Yrd Mat Mat Min Mat Total Allies . | . . . . . Largest Group . | . . . . . Highest-Rated Group . | . . . . . Highest-Rated Ally . | . . . . . Total Orders . | . . . . . Ally Attacks . | . . . . . Total Damage . | . . . . . Kills . | . . . . . Allies Corrupted . | . . . . . Allies Melted . | . . . . . Intel | -11 -10 -9 -9 -8 ------- Run | Yrd Mat Mat Min Mat Robot Analysis Total . | . . . . . Derelict Logs Recovered 1 | . . . 1 . Drone Launches . | . . . . . Drone Recoveries . | . . . . . Exploration | -11 -10 -9 -9 -8 ------------- Run | Yrd Mat Mat Min Mat Turns Passed 793 | 49 206 137 233 168 Spaces Moved 631 | 39 155 124 157 156 Core 90 | 2 . . 1 87 Treads 7 | . . . . 7 Legs 104 | . . . 54 50 Wheels 430 | 37 155 124 102 12 Hover . | . . . . . Flight . | . . . . . Fastest Speed 50 | 50 90 90 50 50 Average Speed 91 | 87 90 90 100 84 Slowest Speed 190 | 90 90 90 120 190 Overloaded Moves . | . . . . . Propulsion Burnouts . | . . . . . Robots Hopped . | . . . . . Cave-ins Triggered . | . . . . . Exploration Rate (%) 20 | 4 20 19 34 27 Regions Visited 4 Branch Regions 1 Pre-discovered Areas . | . . . . . Known Exits Taken . | . . . . . Unknown Exits Taken 4 | 1 1 1 1 . Scrap Searched . | . . . . . Spaces Dug . | . . . . . Terrain Destroyed . | . . . . . Melee . | . . . . . Projectile . | . . . . . AOE . | . . . . . Terrain Rammed . | . . . . . Walls Destroyed . | . . . . . Machines Disabled . | . . . . . Actions | -11 -10 -9 -9 -8 --------- Run | Yrd Mat Mat Min Mat Total 793 | 54 213 149 192 185 Wait 75 | . 50 20 5 . Move 627 | 38 154 123 156 156 Hop . | . . . . . Pick Up 23 | 10 2 2 3 6 Fast Attach . | . . . . . Attach 22 | 5 1 4 4 8 Detach . | . . . . . Swap . | . . . . . Drop 1 | 1 . . . . Fire 28 | . 4 . 22 2 Melee . | . . . . . Ram 6 | . 2 . . 4 Kick 8 | . . . 2 6 Crush 3 | . . . . 3 Escape Stasis . | . . . . . Rewire . | . . . . . Trap . | . . . . . Miscellaneous . | . . . . . Route ------- -11/Scrapyard -10/Materials -9/Materials -9/Mines -8/Materials History --------- Turn | Location | Event 8 | -11/Scrapyard | Discovered new exit (range 16) 50 | -11/Scrapyard | Entered Materials 227 | -10/Materials | Discovered new exit (range 14) 256 | -10/Materials | Entered another Materials area 256 | -9/Materials | Evolved 2 slots: Power x1, Weapon x1 334 | -9/Materials | Repaired Seismic Detector 377 | -9/Materials | Discovered new exit (range 18) 393 | -9/Materials | Entered Mines 410 | -9/Mines | Assembled infested the area 415 | -9/Mines | Assisted by a Guerilla fighting off Assembled 415 | -9/Mines | Learned Materials stockpile data 573 | -9/Mines | Core integrity fell below 50% 606 | -9/Mines | Discovered new exit (range 13) 607 | -9/Mines | Lost 9 parts (2p2n2u3w) 626 | -9/Mines | Entered Materials 626 | -8/Materials | Evolved 2 slots: Propulsion x2 714 | -8/Materials | Lost 5 parts (1p3n1u) 742 | -8/Materials | Core integrity fell below 50% 766 | -8/Materials | Lost 6 parts (2n2u2w) 778 | -8/Materials | Core integrity fell below 20% 794 | -8/Materials | Destroyed by Y-45 Defender with Heavy Assault Rifle Last Messages --------------- 00735_ U-05 Engineer destroyed. 00736_ R-06 Scavenger collects Terrain Scan Processor. 00751_ Triggered Alarm Trap. 00751_ An alarm sounds. 00751_ ALERT: Alarm triggered, dispatching investigation squad. 00764_ Slammed into W-25 Informer. 00765_ Triggered Alarm Trap. 00765_ An alarm sounds. 00765_ ALERT: Alarm triggered, dispatching investigation squad. 00768_ K-01 Serf collects debris. 00770_ K-01 Serf destroyed. 00771_ Slammed into W-25 Informer. 00774_ O-16 Technician: "IFF HANDSHAKE FAILED. SECURING TERMINAL." 00774_ Acquired Wheel. 00777_ S-10 Pest destroyed. 00783_ ALERT: Hostiles spotted, dispatching reinforcements to Terminal M005. 00785_ Wheel destroyed. 00792_ Slammed into W-25 Informer. 00793_ Destabilizing: System corrupted (+1). Map ----- +----------------------------------------------------+ | ?????????????????????????????????????????????? | | ?????????????????????????????????????????????? | | ?????????????????????????????????????????????? | | ?????????????????????????????????????????????? | | ?????????????????????????????????????????????? | | ?????????????????????????????????????????????? | | ?????????????????????????????????????????????? | | ?????????????????????????????????????????????? | | ?????????????????????????????????????????????? | | ?????????????????????????????????????????????? | | ?????????????????????????????????????????????? | | ?????????????????????????????????????????????? | | ?????????????????????????????????????????????? | | ?????????????????????????????????????????????? | | ?????????????????????????????????????????????? | | ?????????????????????????????????????????????? | | ??????????????????????????????##?????????????? | | ?????????????????????????????? ?????????????? | | ?????????????????????????????? #?????????????? | | ?????????????????###########?? #?????????????? | | ?????????????????# ! #?# #?????????????? | | ?????????????????# s ### ###???????????? | | ?????????????????# """ # [ #?????? #???? | | ?????????????????# """"" # #### #???? | | ?????????????????# """""w Y/ tg #???? | | ?????????????????# """""s@ # ###?????????? | | ?????????????????# """% # #???????????? | | ?????????????????# s ## ##???????????? | | ????????????????############# =#????????????? | | ?????????????? %#????????????? | | ?????????????? =#????????????? | | ?????????????? %###??????????? | | ???????????????# ########## T#??????????? | | ????????????????????????????# ""#??????????? | | ????????????????????????????# ###??????????? | | ????????????????????????????# #????????????? | | ????????????????????????????# %#????????????? | | ????????????????????????????# #????????????? | | ????????????????????????????# #????????????? | | ?????????? ????????????????# #????????????? | | ?????????? ??????????????# #????????????? | | ?????????? "??????????????# #????????????? | | ?????????? "?? ???????????# #????????????? | | ????????## "?" #????????# #????????????? | | ????????+ "?" ########## #??????? #???? | | ????????# # # #????? #???? | | ????????# # """ # #### #???? | | ????????+ "Y" + "R" # #???? | | ????????# """ # " " # % #???? | | ?????#### # + "" ! #???? | +----------------------------------------------------+ Best States ------------- Heat Dissipation 53 Energy Generation 15 Energy Capacity 150 Matter Stores 300 Matter Capacity 300 Sight Range 18 Robot Scan Range 15 Terrain Scan Density 10 Armor Coverage 150 Evasion (%) 55 Recoil Reduction 1 Item Schematics ----------------- None Robot Schematics ------------------ None Fabricated ------------ Nothing Alien Tech Used ----------------- None Achievements -------------- None Challenges ------------ None Game ------ Seed AlertActuatorPenetrator Manual? 0 Play Time 00:12:25 Cumulative 16.3 hours Start 2025.03.26 @ 22:20:54 End 2025.03.26 @ 22:31:16 Sessions 1 Manual Loads 0 Difficulty Rogue Special Mode None Game No. 55 Rogue 55 Adventurer 0 Explorer 0 Win Type - Total 0 Types 0/0/0/0/0/0/0/0/0 Lore% 9 Gallery% 21 Achievement% 19 Wizard Run 0 Options --------- Layout 0 ASCII 0 Keyboard 0 Movement Numpad Keybinds 0 Fullscreen 1 Font 18/SmallcapsGlow Map View 76x50 Zoom Use 0% Tactical HUD 1 Map Filters NONE Filters NONE Steam 1 RUN: 6da3bddf-269a-4a3e-8fad-d719652952f8